[Event "*** Titled Tuesday Blitz"]
[Site "Chess.com"]
[Date "2020.12.01"]
[Round "10"]
[White "nochewycandy"]
[Black "WeAintSurePal"]
[Result "0-1"]
[WhiteElo "2506"]
[BlackElo "2378"]
[TimeControl "180+1"]
[EndTime "11:54:47 PST"]
[Termination "WeAintSurePal won by checkmate"]

1. c4 {[%clk 0:03:00.9]} 1... e5 {[%clk 0:02:59.4]} 2. g3 {[%clk 0:02:58.9]}
2... Nc6 {[%clk 0:02:59.2]} 3. Bg2 {[%clk 0:02:57.9]} 3... h5 {[%clk 0:02:59.6]}
4. h4 {[%clk 0:02:54.8]} 4... Bc5 {[%clk 0:02:58.9]} 5. Nc3 {[%clk 0:02:52.6]}
5... d6 {[%clk 0:02:59.2]} 6. e3 {[%clk 0:02:41.8]} 6... a6 {[%clk 0:02:45.9]}
7. Nge2 {[%clk 0:02:38.7]} 7... Ba7 {[%clk 0:02:44.7]} 8. d4 {[%clk 0:02:38.6]}
8... Bg4 {[%clk 0:02:44.6]} 9. d5 {[%clk 0:02:34.2]} 9... Nce7 {[%clk
0:02:43.5]} 10. Ne4 {[%clk 0:02:06.4]} 10... Nf6 {[%clk 0:02:42.5]} 11. Nxf6+
{[%clk 0:02:02]} 11... gxf6 {[%clk 0:02:43.4]} 12. f3 {[%clk 0:02:01]} 12... Bd7
{[%clk 0:02:43]} 13. Nc3 {[%clk 0:02:00.4]} 13... f5 {[%clk 0:02:42.6]} 14. e4
{[%clk 0:01:54.1]} 14... Rg8 {[%clk 0:02:40.6]} 15. Bg5 {[%clk 0:01:49.6]} 15...
f4 {[%clk 0:02:21.6]} 16. Bh3 {[%clk 0:01:13.4]} 16... Bxh3 {[%clk 0:02:18.2]}
17. Rxh3 {[%clk 0:01:14.3]} 17... f6 {[%clk 0:02:17.3]} 18. gxf4 {[%clk
0:01:08.2]} 18... exf4 {[%clk 0:02:14.1]} 19. Bxf4 {[%clk 0:00:57.5]} 19... Rg1+
{[%clk 0:02:13]} 20. Ke2 {[%clk 0:00:57.9]} 20... Rxd1 {[%clk 0:02:13.2]} 21.
Rxd1 {[%clk 0:00:58.7]} 21... Kd7 {[%clk 0:02:13.1]} 22. Rg3 {[%clk 0:00:51.6]}
22... Qh8 {[%clk 0:02:12.5]} 23. Be3 {[%clk 0:00:40.2]} 23... Bxe3 {[%clk
0:02:11.1]} 24. Kxe3 {[%clk 0:00:40.6]} 24... Rg8 {[%clk 0:02:10.6]} 25. Rdg1
{[%clk 0:00:40.1]} 25... Qh6+ {[%clk 0:02:08.7]} 26. f4 {[%clk 0:00:37.5]} 26...
Rxg3+ {[%clk 0:02:01.1]} 27. Rxg3 {[%clk 0:00:38.4]} 27... b5 {[%clk 0:01:59.7]}
28. cxb5 {[%clk 0:00:36.9]} 28... axb5 {[%clk 0:02:00.6]} 29. Ne2 {[%clk
0:00:37.5]} 29... Qh8 {[%clk 0:01:56.9]} 30. Nd4 {[%clk 0:00:35.7]} 30... Qa8
{[%clk 0:01:55.9]} 31. a3 {[%clk 0:00:33.7]} 31... Qa7 {[%clk 0:01:55]} 32. Rg7
{[%clk 0:00:30.7]} 32... Qc5 {[%clk 0:01:52.2]} 33. Rg2 {[%clk 0:00:20.5]} 33...
f5 {[%clk 0:01:49.2]} 34. Rc2 {[%clk 0:00:20.6]} 34... Qb6 {[%clk 0:01:48.8]}
35. Kd3 {[%clk 0:00:17.6]} 35... fxe4+ {[%clk 0:01:48.7]} 36. Kxe4 {[%clk
0:00:18.1]} 36... b4 {[%clk 0:01:48.3]} 37. Ne6 {[%clk 0:00:17.9]} 37... bxa3
{[%clk 0:01:45.3]} 38. bxa3 {[%clk 0:00:18.8]} 38... Nxd5 {[%clk 0:01:37.9]} 39.
Kxd5 {[%clk 0:00:12.6]} 39... c6+ {[%clk 0:01:37.6]} 40. Ke4 {[%clk 0:00:12.2]}
40... Kxe6 {[%clk 0:01:37.6]} 41. f5+ {[%clk 0:00:12.8]} 41... Kf6 {[%clk
0:01:37.1]} 42. Rg2 {[%clk 0:00:11.2]} 42... d5+ {[%clk 0:01:37]} 43. Kd3 {[%clk
0:00:10.5]} 43... Qb3+ {[%clk 0:01:35.7]} 44. Kd4 {[%clk 0:00:09.6]} 44... Qc4+
{[%clk 0:01:35.9]} 45. Ke3 {[%clk 0:00:09.5]} 45... Qe4+ {[%clk 0:01:34.9]} 46.
Kf2 {[%clk 0:00:09.7]} 46... Qxf5+ {[%clk 0:01:34.4]} 47. Kg1 {[%clk 0:00:09.3]}
47... Qb1+ {[%clk 0:01:34]} 48. Kh2 {[%clk 0:00:08.9]} 48... d4 {[%clk
0:01:34.4]} 49. a4 {[%clk 0:00:08.6]} 49... d3 {[%clk 0:01:34.1]} 50. a5 {[%clk
0:00:09.1]} 50... Qb8+ {[%clk 0:01:31.8]} 51. Kg1 {[%clk 0:00:06.1]} 51... c5
{[%clk 0:01:32.1]} 52. a6 {[%clk 0:00:05.7]} 52... c4 {[%clk 0:01:31.2]} 53. Ra2
{[%clk 0:00:05.4]} 53... Qa7+ {[%clk 0:01:29.2]} 54. Kf1 {[%clk 0:00:05.3]}
54... c3 {[%clk 0:01:30.1]} 55. Ra4 {[%clk 0:00:03.3]} 55... c2 {[%clk
0:01:29.9]} 56. Rc4 {[%clk 0:00:02.6]} 56... Qxa6 {[%clk 0:01:29.3]} 57. Rc5
{[%clk 0:00:02.1]} 57... d2+ {[%clk 0:01:29.1]} 58. Kg2 {[%clk 0:00:02.7]} 58...
Qe2+ {[%clk 0:01:28]} 59. Kg3 {[%clk 0:00:02.6]} 59... Qe3+ {[%clk 0:01:27.8]}
60. Kh2 {[%clk 0:00:02.8]} 60... Qxc5 {[%clk 0:01:28.3]} 61. Kh3 {[%clk
0:00:03.7]} 61... Qf5+ {[%clk 0:01:27.5]} 62. Kg2 {[%clk 0:00:04.6]} 62... Qg4+
{[%clk 0:01:27.7]} 63. Kh2 {[%clk 0:00:05]} 63... Qf4+ {[%clk 0:01:22.8]} 64.
Kg2 {[%clk 0:00:05.4]} 64... d1=Q {[%clk 0:01:22.2]} 65. Kh3 {[%clk 0:00:06.3]}
65... Qdf1# {[%clk 0:01:22.1]} 0-1

[Event "*** Titled Tuesday Blitz"]
[Site "Chess.com"]
[Date "2020.12.01"]
[Round "10"]
[White "Karacsonyi_Gellert"]
[Black "sokidze"]
[Result "0-1"]
[WhiteElo "2669"]
[BlackElo "2530"]
[TimeControl "180+1"]
[EndTime "11:54:48 PST"]
[Termination "sokidze won by resignation"]

1. e4 {[%clk 0:03:00.9]} 1... c5 {[%clk 0:02:59.7]} 2. Nf3 {[%clk 0:03:01]} 2...
Nc6 {[%clk 0:02:59.7]} 3. d4 {[%clk 0:03:01.6]} 3... cxd4 {[%clk 0:03:00.1]} 4.
Nxd4 {[%clk 0:03:02.5]} 4... g6 {[%clk 0:03:00.7]} 5. Nc3 {[%clk 0:03:02.9]}
5... Bg7 {[%clk 0:03:00.7]} 6. Be3 {[%clk 0:03:03.4]} 6... Nf6 {[%clk
0:03:01.1]} 7. Bc4 {[%clk 0:03:03.3]} 7... O-O {[%clk 0:03:01.2]} 8. Bb3 {[%clk
0:03:03.4]} 8... Re8 {[%clk 0:03:01.4]} 9. f3 {[%clk 0:03:03.2]} 9... e6 {[%clk
0:03:00.6]} 10. f4 {[%clk 0:03:03.8]} 10... d6 {[%clk 0:03:00.6]} 11. Qf3 {[%clk
0:02:54.5]} 11... Na5 {[%clk 0:02:51.4]} 12. O-O-O {[%clk 0:02:52.6]} 12... e5
{[%clk 0:02:40.6]} 13. fxe5 {[%clk 0:02:45.7]} 13... Bg4 {[%clk 0:02:40.7]} 14.
Qf2 {[%clk 0:02:40.6]} 14... Rxe5 {[%clk 0:02:40.3]} 15. Nf3 {[%clk 0:02:37.6]}
15... Nxb3+ {[%clk 0:02:30.2]} 16. axb3 {[%clk 0:02:36]} 16... Nxe4 {[%clk
0:02:25.5]} 17. Nxe4 {[%clk 0:02:34.8]} 17... Rxe4 {[%clk 0:02:26.4]} 18. h3
{[%clk 0:02:13.2]} 18... Bxf3 {[%clk 0:02:16.1]} 19. Qxf3 {[%clk 0:02:11.2]}
19... Qe7 {[%clk 0:02:15.7]} 20. Bd2 {[%clk 0:02:02.6]} 20... Re8 {[%clk
0:02:12.5]} 21. Rhf1 {[%clk 0:02:00.4]} 21... Qe6 {[%clk 0:02:05.8]} 22. Kb1
{[%clk 0:01:52.3]} 22... d5 {[%clk 0:02:05]} 23. Rde1 {[%clk 0:01:42.9]} 23...
b5 {[%clk 0:01:57]} 24. Rxe4 {[%clk 0:01:38.6]} 24... dxe4 {[%clk 0:01:57.9]}
25. Qe2 {[%clk 0:01:38.4]} 25... Rd8 {[%clk 0:01:46.6]} 26. Be3 {[%clk
0:01:34.8]} 26... Qe5 {[%clk 0:01:41]} 27. c3 {[%clk 0:01:34.4]} 27... a5 {[%clk
0:01:39.7]} 28. Qf2 {[%clk 0:01:28.4]} 28... f5 {[%clk 0:01:35.4]} 29. g4 {[%clk
0:01:26.7]} 29... Rf8 {[%clk 0:01:33.6]} 30. Bd4 {[%clk 0:01:17.4]} 30... Qe6
{[%clk 0:01:31]} 31. Bxg7 {[%clk 0:01:16]} 31... Kxg7 {[%clk 0:01:31.9]} 32.
Qd4+ {[%clk 0:01:09.3]} 32... Qf6 {[%clk 0:01:31.8]} 33. Qa7+ {[%clk 0:01:07.2]}
33... Rf7 {[%clk 0:01:30]} 34. Qxa5 {[%clk 0:01:07.6]} 34... f4 {[%clk
0:01:26.6]} 35. Qxb5 {[%clk 0:01:07.8]} 35... e3 {[%clk 0:01:25.6]} 36. Qe2
{[%clk 0:01:02.5]} 36... Qe5 {[%clk 0:01:23.3]} 37. Qf3 {[%clk 0:00:47.9]} 37...
Rd7 {[%clk 0:01:15.6]} 38. b4 {[%clk 0:00:37.2]} 38... g5 {[%clk 0:01:05.6]} 39.
Ka2 {[%clk 0:00:33.8]} 39... Qe6+ {[%clk 0:00:55]} 40. Kb1 {[%clk 0:00:33.3]}
40... Qd5 {[%clk 0:00:52.2]} 41. Qxd5 {[%clk 0:00:07.7]} 41... Rxd5 {[%clk
0:00:53.1]} 42. Kc2 {[%clk 0:00:06.5]} 42... e2 {[%clk 0:00:52]} 43. Ra1 {[%clk
0:00:07]} 43... f3 {[%clk 0:00:50.5]} 44. c4 {[%clk 0:00:07.6]} 44... Rd8 {[%clk
0:00:49.4]} 45. Ra7+ {[%clk 0:00:05.9]} 45... Kh8 {[%clk 0:00:49]} 46. Re7
{[%clk 0:00:03.5]} 46... f2 {[%clk 0:00:48.9]} 0-1

[Event "*** Titled Tuesday Blitz"]
[Site "Chess.com"]
[Date "2020.12.01"]
[Round "10"]
[White "ChronicUnhappiness"]
[Black "yourstrulyme"]
[Result "0-1"]
[WhiteElo "2364"]
[BlackElo "2473"]
[TimeControl "180+1"]
[EndTime "11:54:50 PST"]
[Termination "yourstrulyme won by checkmate"]

1. c4 {[%clk 0:02:59]} 1... Nf6 {[%clk 0:03:00.1]} 2. Nf3 {[%clk 0:02:58.7]}
2... e6 {[%clk 0:03:00.6]} 3. Nc3 {[%clk 0:02:58.5]} 3... d5 {[%clk 0:03:01.1]}
4. cxd5 {[%clk 0:02:58.3]} 4... exd5 {[%clk 0:03:02]} 5. d4 {[%clk 0:02:58.1]}
5... Be7 {[%clk 0:03:01.1]} 6. Bg5 {[%clk 0:02:57.3]} 6... O-O {[%clk
0:02:49.8]} 7. e3 {[%clk 0:02:56.9]} 7... Bf5 {[%clk 0:02:43.5]} 8. Qb3 {[%clk
0:02:55.2]} 8... Nc6 {[%clk 0:02:41.8]} 9. Bxf6 {[%clk 0:02:48.7]} 9... Bxf6
{[%clk 0:02:41.5]} 10. Nxd5 {[%clk 0:02:42.4]} 10... Bxd4 {[%clk 0:01:52.3]} 11.
exd4 {[%clk 0:02:32.4]} 11... Be6 {[%clk 0:01:51]} 12. O-O-O {[%clk 0:01:33.9]}
12... Bxd5 {[%clk 0:01:48.2]} 13. Qa3 {[%clk 0:01:34.1]} 13... a5 {[%clk
0:01:46.1]} 14. Bb5 {[%clk 0:01:33.2]} 14... Nb4 {[%clk 0:01:45.1]} 15. Bc4
{[%clk 0:01:28.3]} 15... Bxc4 {[%clk 0:01:44.4]} 16. Ne5 {[%clk 0:01:22.3]}
16... Bxa2 {[%clk 0:01:35.3]} 17. b3 {[%clk 0:01:17.8]} 17... Ra6 {[%clk
0:01:29.7]} 18. Kb2 {[%clk 0:01:16.8]} 18... Qd5 {[%clk 0:01:20.7]} 19. Rd2
{[%clk 0:01:08.2]} 19... Rd8 {[%clk 0:01:17.7]} 20. Rc1 {[%clk 0:01:04.5]} 20...
Qxe5 {[%clk 0:00:46]} 21. dxe5 {[%clk 0:01:03.7]} 21... Rxd2+ {[%clk 0:00:46.5]}
22. Ka1 {[%clk 0:00:55.4]} 22... h6 {[%clk 0:00:25.6]} 23. Rxc7 {[%clk
0:00:49.1]} 23... Nc2+ {[%clk 0:00:24.7]} 24. Rxc2 {[%clk 0:00:47.7]} 24... Rxc2
{[%clk 0:00:25.6]} 25. Qe7 {[%clk 0:00:37]} 25... Rxf2 {[%clk 0:00:17.5]} 26.
Qc5 {[%clk 0:00:25.1]} 26... Rxg2 {[%clk 0:00:15.1]} 27. Qc8+ {[%clk 0:00:24.7]}
27... Kh7 {[%clk 0:00:14.1]} 28. Qf5+ {[%clk 0:00:24.9]} 28... Rag6 {[%clk
0:00:13.1]} 29. h4 {[%clk 0:00:21.3]} 29... Kg8 {[%clk 0:00:08.4]} 30. Qc8+
{[%clk 0:00:20.1]} 30... Kh7 {[%clk 0:00:08]} 31. Qf5 {[%clk 0:00:21]} 31... h5
{[%clk 0:00:06.5]} 32. Qxh5+ {[%clk 0:00:19.9]} 32... Kg8 {[%clk 0:00:04.4]} 33.
Qf5 {[%clk 0:00:20.2]} 33... Rh2 {[%clk 0:00:03.3]} 34. Qc8+ {[%clk 0:00:19.5]}
34... Kh7 {[%clk 0:00:03.2]} 35. Qxb7 {[%clk 0:00:19.4]} 35... Rg1# {[%clk
0:00:03]} 0-1

[Event "*** Titled Tuesday Blitz"]
[Site "Chess.com"]
[Date "2020.12.01"]
[Round "10"]
[White "SlavenPastar"]
[Black "Manukyan_Artak"]
[Result "1-0"]
[WhiteElo "2505"]
[BlackElo "2377"]
[TimeControl "180+1"]
[EndTime "11:54:51 PST"]
[Termination "SlavenPastar won on time"]

1. b3 {[%clk 0:03:00.9]} 1... Nf6 {[%clk 0:02:59.4]} 2. Bb2 {[%clk 0:03:01.8]}
2... g6 {[%clk 0:02:59.1]} 3. Bxf6 {[%clk 0:03:00.7]} 3... exf6 {[%clk 0:03:00]}
4. c4 {[%clk 0:03:00.5]} 4... f5 {[%clk 0:03:00.6]} 5. Nc3 {[%clk 0:03:01.1]}
5... f4 {[%clk 0:03:00.6]} 6. e3 {[%clk 0:03:00.5]} 6... fxe3 {[%clk 0:03:00.4]}
7. fxe3 {[%clk 0:02:57.2]} 7... h5 {[%clk 0:02:48]} 8. Nf3 {[%clk 0:02:56.1]}
8... d6 {[%clk 0:02:41.5]} 9. Qc2 {[%clk 0:02:54.6]} 9... Nc6 {[%clk 0:02:37.4]}
10. g3 {[%clk 0:02:52.6]} 10... Bg7 {[%clk 0:02:27.4]} 11. a3 {[%clk 0:02:50]}
11... O-O {[%clk 0:02:22.6]} 12. Bg2 {[%clk 0:02:47.6]} 12... Bf5 {[%clk
0:02:11.8]} 13. Qb2 {[%clk 0:02:27.2]} 13... Bd3 {[%clk 0:01:56.4]} 14. Bf1
{[%clk 0:02:23.8]} 14... Bxf1 {[%clk 0:01:42.9]} 15. Rxf1 {[%clk 0:02:24.7]}
15... a5 {[%clk 0:01:40.9]} 16. Qc2 {[%clk 0:02:18.1]} 16... a4 {[%clk
0:01:28.2]} 17. b4 {[%clk 0:02:16.8]} 17... Re8 {[%clk 0:01:15.1]} 18. O-O-O
{[%clk 0:02:15.6]} 18... Qf6 {[%clk 0:00:55.7]} 19. h4 {[%clk 0:02:07.8]} 19...
Qe6 {[%clk 0:00:33.8]} 20. Ng5 {[%clk 0:02:02]} 20... Qxc4 {[%clk 0:00:32.1]}
21. Rxf7 {[%clk 0:01:55.9]} 21... Ne5 {[%clk 0:00:22.4]} 22. d3 {[%clk
0:01:10.6]} 22... Qc6 {[%clk 0:00:20.4]} 23. Rf4 {[%clk 0:00:47]} 23... Ng4
{[%clk 0:00:16.9]} 24. Rc4 {[%clk 0:00:42.8]} 24... Qd7 {[%clk 0:00:14.2]} 25.
Nd5 {[%clk 0:00:27.5]} 25... Nxe3 {[%clk 0:00:08.6]} 26. Rxc7 {[%clk 0:00:20.2]}
26... Qf5 {[%clk 0:00:06.8]} 27. Nxe3 {[%clk 0:00:18.1]} 27... Rxe3 {[%clk
0:00:07.7]} 28. Ne4 {[%clk 0:00:15.8]} 28... Qe5 {[%clk 0:00:06.6]} 29. Qc4+
{[%clk 0:00:11.3]} 29... Kh8 {[%clk 0:00:03.1]} 30. Kd2 {[%clk 0:00:07.6]} 1-0

[Event "*** Titled Tuesday Blitz"]
[Site "Chess.com"]
[Date "2020.12.01"]
[Round "10"]
[White "ljuks68"]
[Black "rududuyk"]
[Result "1/2-1/2"]
[WhiteElo "2363"]
[BlackElo "2230"]
[TimeControl "180+1"]
[EndTime "11:54:51 PST"]
[Termination "Game drawn by repetition"]

1. e4 {[%clk 0:03:00.9]} 1... e6 {[%clk 0:03:00]} 2. d4 {[%clk 0:02:59.9]} 2...
d5 {[%clk 0:03:00.4]} 3. Nc3 {[%clk 0:02:55]} 3... Bb4 {[%clk 0:02:59.6]} 4. e5
{[%clk 0:02:54.8]} 4... c5 {[%clk 0:02:59.9]} 5. a3 {[%clk 0:02:54.9]} 5...
Bxc3+ {[%clk 0:03:00.5]} 6. bxc3 {[%clk 0:02:55.2]} 6... Ne7 {[%clk 0:03:00.7]}
7. h4 {[%clk 0:02:53.5]} 7... Qa5 {[%clk 0:02:32]} 8. Bd2 {[%clk 0:02:50.4]}
8... Qa4 {[%clk 0:02:31.4]} 9. h5 {[%clk 0:02:26.1]} 9... Nbc6 {[%clk
0:02:25.7]} 10. h6 {[%clk 0:02:25.1]} 10... g6 {[%clk 0:02:08.5]} 11. Bg5 {[%clk
0:02:23.6]} 11... cxd4 {[%clk 0:02:04.2]} 12. Bf6 {[%clk 0:02:23.2]} 12... Rg8
{[%clk 0:02:02.7]} 13. Nf3 {[%clk 0:02:22.6]} 13... dxc3 {[%clk 0:01:55.3]} 14.
Bd3 {[%clk 0:02:18.7]} 14... Nf5 {[%clk 0:01:48.4]} 15. Ng5 {[%clk 0:02:00.7]}
15... Qf4 {[%clk 0:01:24.9]} 16. g3 {[%clk 0:01:13.8]} 16... Nxg3 {[%clk
0:01:14.6]} 17. fxg3 {[%clk 0:01:09.4]} 17... Qxg3+ {[%clk 0:01:14.6]} 18. Kf1
{[%clk 0:01:08]} 18... Nxe5 {[%clk 0:01:08.3]} 19. Bxe5 {[%clk 0:00:54.5]} 19...
Qxe5 {[%clk 0:01:05.8]} 20. Nxh7 {[%clk 0:00:53.1]} 20... Rh8 {[%clk 0:01:00.7]}
21. Qf3 {[%clk 0:00:21.4]} 21... Rxh7 {[%clk 0:00:56.7]} 22. Re1 {[%clk
0:00:20.5]} 22... Qd6 {[%clk 0:00:40]} 23. Qf6 {[%clk 0:00:19.3]} 23... Qe7
{[%clk 0:00:32]} 24. Qxc3 {[%clk 0:00:18.4]} 24... Bd7 {[%clk 0:00:29]} 25. Re2
{[%clk 0:00:16.7]} 25... Rc8 {[%clk 0:00:28.8]} 26. Qd4 {[%clk 0:00:15.7]} 26...
Qxa3 {[%clk 0:00:19.9]} 27. Rf2 {[%clk 0:00:11.7]} 27... Qc1+ {[%clk 0:00:18.7]}
28. Kg2 {[%clk 0:00:10.9]} 28... Qg5+ {[%clk 0:00:18.3]} 29. Kf1 {[%clk
0:00:10.7]} 29... Rxh6 {[%clk 0:00:17.6]} 30. Rg1 {[%clk 0:00:10.3]} 30... Qh5
{[%clk 0:00:15.4]} 31. Qf6 {[%clk 0:00:08.8]} 31... Qd1+ {[%clk 0:00:13.2]} 32.
Kg2 {[%clk 0:00:08.6]} 32... Qg4+ {[%clk 0:00:12.9]} 33. Kf1 {[%clk 0:00:08.7]}
33... Qd1+ {[%clk 0:00:10.4]} 34. Kg2 {[%clk 0:00:08.6]} 34... Qg4+ {[%clk
0:00:09.3]} 35. Kf1 {[%clk 0:00:08.5]} 35... Qd1+ {[%clk 0:00:06.9]} 1/2-1/2

[Event "*** Titled Tuesday Blitz"]
[Site "Chess.com"]
[Date "2020.12.01"]
[Round "10"]
[White "QuintilianoR"]
[Black "daro94"]
[Result "0-1"]
[WhiteElo "2628"]
[BlackElo "2851"]
[TimeControl "180+1"]
[EndTime "11:54:54 PST"]
[Termination "daro94 won on time"]

1. d4 {[%clk 0:03:00.9]} 1... Nf6 {[%clk 0:03:00]} 2. c4 {[%clk 0:03:00.7]} 2...
c5 {[%clk 0:02:59.3]} 3. d5 {[%clk 0:02:59.9]} 3... b5 {[%clk 0:02:58.8]} 4.
cxb5 {[%clk 0:03:00.8]} 4... a6 {[%clk 0:02:58.8]} 5. e3 {[%clk 0:03:01.2]} 5...
g6 {[%clk 0:02:58.1]} 6. Nc3 {[%clk 0:03:00.4]} 6... Bg7 {[%clk 0:02:57.7]} 7.
Nf3 {[%clk 0:03:00.7]} 7... O-O {[%clk 0:02:57.7]} 8. a4 {[%clk 0:03:00.8]} 8...
axb5 {[%clk 0:02:55.3]} 9. Bxb5 {[%clk 0:02:59.7]} 9... d6 {[%clk 0:02:55.8]}
10. O-O {[%clk 0:02:58.8]} 10... Ba6 {[%clk 0:02:50.7]} 11. Bxa6 {[%clk
0:02:52.3]} 11... Nxa6 {[%clk 0:02:49]} 12. Qe2 {[%clk 0:02:50.9]} 12... Nb4
{[%clk 0:02:40.3]} 13. e4 {[%clk 0:02:48.5]} 13... Qb6 {[%clk 0:02:32.8]} 14. h3
{[%clk 0:02:43]} 14... Qa6 {[%clk 0:02:33.2]} 15. Nb5 {[%clk 0:02:33.9]} 15...
Rfb8 {[%clk 0:02:29.9]} 16. Ra3 {[%clk 0:02:17.9]} 16... Qc8 {[%clk 0:02:24.9]}
17. Bg5 {[%clk 0:01:56.8]} 17... h6 {[%clk 0:02:22.7]} 18. Bd2 {[%clk
0:01:24.1]} 18... Nd7 {[%clk 0:02:09.9]} 19. Bc3 {[%clk 0:01:22.1]} 19... Qf8
{[%clk 0:01:56.5]} 20. Rd1 {[%clk 0:01:12.3]} 20... Nb6 {[%clk 0:01:49.7]} 21.
a5 {[%clk 0:00:38.6]} 21... Nd7 {[%clk 0:01:38.1]} 22. e5 {[%clk 0:00:24.4]}
22... dxe5 {[%clk 0:01:33.2]} 23. d6 {[%clk 0:00:22.6]} 23... exd6 {[%clk
0:01:26.8]} 24. Rxd6 {[%clk 0:00:14]} 24... Qe7 {[%clk 0:00:51.5]} 25. Rd1
{[%clk 0:00:07.5]} 25... Nc6 {[%clk 0:00:39.1]} 26. Nc7 {[%clk 0:00:07]} 26...
Ra7 {[%clk 0:00:38]} 27. Nd5 {[%clk 0:00:06.6]} 27... Qe8 {[%clk 0:00:35.6]} 28.
Qe3 {[%clk 0:00:06.5]} 28... Nd4 {[%clk 0:00:35.5]} 29. Nd2 {[%clk 0:00:05.1]}
29... Nc2 {[%clk 0:00:35.1]} 30. Qe4 {[%clk 0:00:03.3]} 30... Nxa3 {[%clk
0:00:35.4]} 31. bxa3 {[%clk 0:00:04.2]} 31... Nf6 {[%clk 0:00:30.8]} 32. Nxf6+
{[%clk 0:00:03.3]} 32... Bxf6 {[%clk 0:00:31.7]} 33. Nc4 {[%clk 0:00:04]} 33...
Bg7 {[%clk 0:00:29.6]} 34. Nxe5 {[%clk 0:00:02.7]} 34... Rb3 {[%clk 0:00:21.1]}
35. Qc4 {[%clk 0:00:01.6]} 35... Rxc3 {[%clk 0:00:20]} 36. Qxc3 {[%clk
0:00:02.5]} 36... Qxe5 {[%clk 0:00:18.7]} 0-1

[Event "*** Titled Tuesday Blitz"]
[Site "Chess.com"]
[Date "2020.12.01"]
[Round "10"]
[White "Meri-Arabidze"]
[Black "Alexsur1981"]
[Result "0-1"]
[WhiteElo "2619"]
[BlackElo "2821"]
[TimeControl "180+1"]
[EndTime "11:54:54 PST"]
[Termination "Alexsur1981 won on time"]

1. Nf3 {[%clk 0:03:00.9]} 1... d5 {[%clk 0:02:48.1]} 2. b3 {[%clk 0:03:00.7]}
2... c6 {[%clk 0:02:47.8]} 3. Bb2 {[%clk 0:03:00.4]} 3... Bg4 {[%clk 0:02:48.2]}
4. d4 {[%clk 0:02:58.5]} 4... Nd7 {[%clk 0:02:46.6]} 5. Nbd2 {[%clk 0:02:58.2]}
5... Ngf6 {[%clk 0:02:45.8]} 6. e3 {[%clk 0:02:58.2]} 6... e6 {[%clk 0:02:45.5]}
7. Bd3 {[%clk 0:02:58.3]} 7... Bd6 {[%clk 0:02:44.2]} 8. h3 {[%clk 0:02:58.2]}
8... Bh5 {[%clk 0:02:42.8]} 9. Qe2 {[%clk 0:02:58.4]} 9... Qe7 {[%clk
0:02:41.5]} 10. g4 {[%clk 0:02:51.4]} 10... Bg6 {[%clk 0:02:40.3]} 11. Ne5
{[%clk 0:02:51.6]} 11... Ba3 {[%clk 0:02:37.9]} 12. Bxa3 {[%clk 0:02:47.1]}
12... Qxa3 {[%clk 0:02:38.8]} 13. f4 {[%clk 0:02:38.4]} 13... Nxe5 {[%clk
0:02:34.7]} 14. fxe5 {[%clk 0:02:35.7]} 14... Bxd3 {[%clk 0:02:34.9]} 15. cxd3
{[%clk 0:02:30.4]} 15... Nd7 {[%clk 0:02:34.6]} 16. O-O {[%clk 0:02:30]} 16...
f6 {[%clk 0:02:29.7]} 17. exf6 {[%clk 0:02:28.3]} 17... gxf6 {[%clk 0:02:30.6]}
18. e4 {[%clk 0:02:18.2]} 18... O-O-O {[%clk 0:02:29.3]} 19. Nf3 {[%clk
0:01:37.9]} 19... h5 {[%clk 0:02:25.8]} 20. g5 {[%clk 0:01:18.4]} 20... Rhg8
{[%clk 0:02:22.7]} 21. h4 {[%clk 0:01:18.1]} 21... Rde8 {[%clk 0:02:03.3]} 22.
Kh1 {[%clk 0:01:14.6]} 22... Kb8 {[%clk 0:01:51.1]} 23. e5 {[%clk 0:01:14.1]}
23... fxg5 {[%clk 0:01:44]} 24. Nxg5 {[%clk 0:01:14.1]} 24... c5 {[%clk
0:01:36.9]} 25. Rf7 {[%clk 0:01:11.4]} 25... Nb6 {[%clk 0:01:36.5]} 26. Raf1
{[%clk 0:00:59.2]} 26... c4 {[%clk 0:01:11.8]} 27. Qxh5 {[%clk 0:00:53.2]} 27...
cxd3 {[%clk 0:01:04.3]} 28. Qh7 {[%clk 0:00:49.5]} 28... Qa6 {[%clk 0:01:03.5]}
29. Nxe6 {[%clk 0:00:42.5]} 29... Rh8 {[%clk 0:01:01.2]} 30. Rf8 {[%clk
0:00:14.7]} 30... Rexf8 {[%clk 0:00:52.4]} 31. Rxf8+ {[%clk 0:00:13.5]} 31...
Rxf8 {[%clk 0:00:50.2]} 32. Nxf8 {[%clk 0:00:11.6]} 32... d2 {[%clk 0:00:40.6]}
33. Qh5 {[%clk 0:00:05.7]} 33... Qf1+ {[%clk 0:00:33.4]} 34. Kh2 {[%clk
0:00:05.8]} 34... a6 {[%clk 0:00:29.9]} 35. Qe8+ {[%clk 0:00:02.2]} 35... Ka7
{[%clk 0:00:28.8]} 36. Nd7 {[%clk 0:00:01.8]} 36... Nxd7 {[%clk 0:00:28.1]} 0-1